{"text_format":"1","workbook":"xlsx","n_sheets":7,"sheets":["Positive Integers","Negative Integers","Positive Fractions","Negative Fractions","VBA Macro","Counting Odd or Even","Conditional Formatting"],"not_rendered":{"charts":0,"images":0,"macros":1,"external_links":0,"defined_names":0,"comments":0,"pivot_tables":0},"unopened":[],"bounds":{"document_bytes":16777216,"sheet_cells":100000,"rows_first":2000,"rows_last":500,"rows_between":2000,"halvings":0,"cell_chars":16384,"cell_head_chars":4096},"cells_cut":0,"cells_raw":0,"read":"whole","date_system":"1900"}

{"sheet":"Positive Integers","index":0,"n_rows":12,"n_cols":6,"rows_kept":12,"cut":false,"hidden":false,"merged":[[1,1,1,2],[1,4,1,5]]}
[]
[null,"Use of ODD Function with Positive Integers",null,null,"Practice"]
[]
[null,"Numbers","Result",null,"Numbers","Result"]
[null,20,{"$f":"ODD(B5)","v":21},null,null,{"$f":"ODD(E5)","v":1}]
[null,65,{"$f":"ODD(B6)","v":65},null,null,{"$f":"ODD(E6)","v":1}]
[null,32,33,null,null,1]
[null,52,53,null,null,1]
[null,12,13,null,null,1]
[null,46,47,null,null,1]
[null,106,107,null,null,1]
[null,122,123,null,null,1]

{"sheet":"Negative Integers","index":1,"n_rows":12,"n_cols":6,"rows_kept":12,"cut":false,"hidden":false,"merged":[[1,1,1,2],[1,4,1,5]]}
[]
[null,"Use of ODD Function with Negative Integers",null,null,"Practice"]
[]
[null,"Numbers","Result",null,"Numbers","Result"]
[null,-16,{"$f":"ODD(B5)","v":-17},null,null,{"$f":"ODD(E5)","v":1}]
[null,-15,{"$f":"ODD(B6)","v":-15},null,null,{"$f":"ODD(E6)","v":1}]
[null,-26,-27,null,null,1]
[null,-68,-69,null,null,1]
[null,-84,-85,null,null,1]
[null,-52,-53,null,null,1]
[null,-42,-43,null,null,1]
[null,-18,-19,null,null,1]

{"sheet":"Positive Fractions","index":2,"n_rows":12,"n_cols":6,"rows_kept":12,"cut":false,"hidden":false,"merged":[[1,1,1,2],[1,4,1,5]]}
[]
[null,"Use of ODD Function with Positive Fractions",null,null,"Practice"]
[]
[null,"Numbers","Result",null,"Numbers","Result"]
[null,21.1,{"$f":"ODD(B5)","v":23},null,null,{"$f":"ODD(E5)","v":1}]
[null,22.5,{"$f":"ODD(B6)","v":23},null,null,{"$f":"ODD(E6)","v":1}]
[null,65.3,67,null,null,1]
[null,85.6,87,null,null,1]
[null,84.1,85,null,null,1]
[null,98.1,99,null,null,1]
[null,99.9,101,null,null,1]
[null,122,123,null,null,1]

{"sheet":"Negative Fractions","index":3,"n_rows":12,"n_cols":6,"rows_kept":12,"cut":false,"hidden":false,"merged":[[1,1,1,2],[1,4,1,5]]}
[]
[null,"Use of ODD Function with Negative Fractions",null,null,"Practice"]
[]
[null,"Numbers","Result",null,"Numbers","Result"]
[null,-19.03,{"$f":"ODD(B5)","v":-21},null,null,{"$f":"ODD(E5)","v":1}]
[null,-20.8,{"$f":"ODD(B6)","v":-21},null,null,{"$f":"ODD(E6)","v":1}]
[null,-66.3,-67,null,null,1]
[null,-55.95,-57,null,null,1]
[null,-64.099999999999994,-65,null,null,1]
[null,-29.6,-31,null,null,1]
[null,-108.9,-109,null,null,1]
[null,-122.6,-123,null,null,1]

{"sheet":"VBA Macro","index":4,"n_rows":12,"n_cols":2,"rows_kept":12,"cut":false,"hidden":false,"merged":[]}
[]
[null,"Use of ODD Function in VBA Macro"]
[]
[null,"Numbers"]
[null,19.03]
[null,20.8]
[null,66]
[null,55]
[null,-64]
[null,-29]
[null,-108.9]
[null,-122.6]

{"sheet":"Counting Odd or Even","index":5,"n_rows":12,"n_cols":12,"rows_kept":12,"cut":false,"hidden":false,"merged":[[1,1,1,5],[1,7,1,11]]}
[]
[null,"Counting Odd or Even in Excel",null,null,null,null,null,"Practice"]
[]
[null,"Numbers","Result",null,"Odd","Even",null,"Numbers","Result",null,"Odd","Even"]
[null,19,{"$f":"IF($B5=ODD($B5),\"Odd\",(IF($B5=EVEN($B5),\"Even\",\"N/A\")))","v":"Odd"},null,{"$f":"COUNTIF($C$5:$C$12,E4)","v":4},{"$f":"COUNTIF($C$5:$C$12,F4)","v":2},null,null,{"$f":"IF($H5=ODD($H5),\"Odd\",(IF($H5=EVEN($H5),\"Even\",\"N/A\")))","v":"Even"},null,{"$f":"COUNTIF($I$5:$I$12,K4)","v":0},{"$f":"COUNTIF($I$5:$I$12,L4)","v":8}]
[null,20.8,{"$f":"IF($B6=ODD($B6),\"Odd\",(IF($B6=EVEN($B6),\"Even\",\"N/A\")))","v":"N/A"},null,null,null,null,null,{"$f":"IF($H6=ODD($H6),\"Odd\",(IF($H6=EVEN($H6),\"Even\",\"N/A\")))","v":"Even"}]
[null,66,"Even",null,null,null,null,null,"Even"]
[null,55,"Odd",null,null,null,null,null,"Even"]
[null,-64,"Even",null,null,null,null,null,"Even"]
[null,-29,"Odd",null,null,null,null,null,"Even"]
[null,109,"Odd",null,null,null,null,null,"Even"]
[null,-122.6,"N/A",null,null,null,null,null,"Even"]

{"sheet":"Conditional Formatting","index":6,"n_rows":13,"n_cols":6,"rows_kept":13,"cut":false,"hidden":false,"merged":[[1,1,1,3],[3,1,3,3],[1,5,1,7],[3,5,3,7]]}
[]
[null,"Conditional Formatting Based on Odd & Even",null,null,null,"Practice"]
[]
[null,"Sample Numbers",null,null,null,"Sample Numbers"]
[null,50,65,41]
[null,61,46,22]
[null,62,465,12]
[null,92,415,46]
[null,85,21,32]
[null,88,41,22]
[null,91,52,21]
[null,93,63,36]
[null,6,7,35]